[Event "Magnus Carlsen Invitational 2021"]
[Site "Online"]
[Date "2021.03.10"]
[Round "9.4"]
[White "Vachier-Lagrave, Maxime"]
[Black "Pichot, Alan"]
[Result "1-0"]
[ECO "D00"]
[WhiteElo "2860"]
[BlackElo "2548"]
[Annotator "RC"]
[PlyCount "97"]
[EventDate "2021.03.13"]
[EventType "tourn"]
[EventCountry "NET"]
[Tiebreak "Koya+Number of black wins+Number of wins"]
[SourceTitle "playchess.com"]
[Source "ChessBase"]
[SourceQuality "1"]
[TimeControl "900+10"]

1. d4 {[%emt 0:00:00]} Nf6 {[%emt 0:00:00]} 2. Bf4 {[%emt 0:00:00]} d5 {
[%emt 0:00:00]} 3. e3 {[%emt 0:00:00]} c5 {[%emt 0:00:08]} 4. c3 {[%emt 0:00:
01]} Qb6 {[%emt 0:00:10]} 5. Qb3 {[%emt 0:00:03]} c4 {[%emt 0:00:12]} 6. Qc2 {
[%emt 0:00:01]} g6 {[%emt 0:00:03]} 7. Nd2 {[%emt 0:00:32]} Bg7 {[%emt 0:00:13]
} 8. e4 {[%emt 0:00:06]} e6 {[%emt 0:01:09]} 9. e5 {[%emt 0:00:14]} Nfd7 {
[%emt 0:00:17]} 10. b3 {[%emt 0:00:12]} cxb3 {[%emt 0:00:06]} 11. axb3 {
[%emt 0:00:00]} O-O {[%emt 0:00:07]} 12. Ngf3 {[%emt 0:00:03]} f6 {[%emt 0:02:
13]} 13. exf6 {[%emt 0:00:02]} Nxf6 {[%emt 0:00:11]} 14. Bd3 {[%emt 0:00:09]}
Nc6 {[%emt 0:00:10]} 15. O-O {[%emt 0:00:08]} Nh5 {[%emt 0:00:38]} 16. Be3 {
[%emt 0:00:10]} Nf4 {[%emt 0:00:15]} 17. b4 {[%emt 0:00:59]} Bd7 {[%emt 0:00:
56]} 18. Nb3 {[%emt 0:00:14]} Nxd3 {[%emt 0:01:07]} 19. Qxd3 {[%emt 0:00:00]}
Ne7 {[%emt 0:00:22]} 20. Rfe1 {[%emt 0:00:02]} Rxf3 {[%emt 0:01:02]} 21. gxf3 {
[%emt 0:00:02]} Rf8 {[%emt 0:00:01]} 22. Bg5 {[%emt 0:00:16]} Nf5 {[%emt 0:00:
21]} 23. Nc5 {[%emt 0:00:01]} Bc8 {[%emt 0:00:01]} 24. Re2 {[%emt 0:00:32]} h6
{[%emt 0:00:23]} 25. Bd2 {[%emt 0:00:02]} a6 {[%emt 0:01:19]} 26. Rae1 {
[%emt 0:00:10]} Rf6 {[%emt 0:00:01]} 27. Kh1 {[%emt 0:00:29]} Qd6 {[%emt 0:00:
23]} 28. f4 {[%emt 0:00:13]} Kh7 {[%emt 0:00:48]} 29. Qh3 {[%emt 0:00:14]} b6 {
[%emt 0:00:54]} 30. Nd3 {[%emt 0:00:01]} a5 {[%emt 0:00:01]} 31. bxa5 {[%emt 0:
00:00]} bxa5 {[%emt 0:00:03]} 32. Nc5 {[%emt 0:00:10]} Qb6 {[%emt 0:00:33]} 33.
Qd3 {[%emt 0:00:02]} Bf8 {[%emt 0:00:38]} 34. Rb1 {[%emt 0:00:12]} Qc7 {
[%emt 0:00:04]} 35. Qb5 {[%emt 0:00:17]} Bd6 {[%emt 0:01:07]} 36. Nd3 {[%emt 0:
00:32]} Rf7 {[%emt 0:00:41]} 37. Ne5 {[%emt 0:00:51]} Rg7 {[%emt 0:00:03]} 38.
Be1 {[%emt 0:00:27]} g5 {[%emt 0:01:07]} 39. fxg5 {[%emt 0:00:07]} Rxg5 {
[%emt 0:00:05]} 40. f4 {[%emt 0:00:04]} Rg8 {[%emt 0:00:22]} 41. Rbb2 {[%emt 0:
00:44]} Bxe5 {[%emt 0:02:43]} 42. fxe5 {[%emt 0:00:02]} Rg5 {[%emt 0:00:37]}
43. Rg2 {[%emt 0:00:18]} Qf7 {[%emt 0:00:09]} 44. Rxg5 {[%emt 0:01:02]} hxg5 {
[%emt 0:00:00]} 45. Rg2 {[%emt 0:00:02]} Qg6 {[%emt 0:00:30]} 46. Qe2 {[%emt 0:
00:12]} a4 {[%emt 0:00:08]} 47. h4 {[%emt 0:00:32]} a3 {[%emt 0:00:17]} 48.
Rxg5 {[%emt 0:00:01]} Qh6 {[%emt 0:00:04]} 49. Rh5 {[%emt 0:00:07]} 1-0

[Event "Magnus Carlsen Invitational 2021"]
[Site "Online"]
[Date "2021.03.10"]
[Round "9.5"]
[White "Firouzja, Alireza"]
[Black "Radjabov, Teimour"]
[Result "1-0"]
[ECO "E99"]
[WhiteElo "2703"]
[BlackElo "2758"]
[Annotator "RC"]
[PlyCount "63"]
[EventDate "2021.03.13"]
[EventType "tourn"]
[EventCountry "NET"]
[Tiebreak "Koya+Number of black wins+Number of wins"]
[SourceTitle "playchess.com"]
[Source "ChessBase"]
[SourceQuality "1"]
[TimeControl "900+10"]

1. d4 {[%emt 0:00:00]} Nf6 {[%emt 0:00:00]} 2. Nf3 {[%emt 0:00:00]} g6 {
[%emt 0:00:00]} 3. c4 {[%emt 0:00:33]} Bg7 {[%emt 0:00:00]} 4. Nc3 {[%emt 0:00:
01]} O-O {[%emt 0:00:00]} 5. e4 {[%emt 0:00:07]} d6 {[%emt 0:00:00]} 6. Be2 {
[%emt 0:00:32]} e5 {[%emt 0:00:00]} 7. O-O {[%emt 0:01:03]} Nc6 {[%emt 0:00:00]
} 8. d5 {[%emt 0:00:03]} Ne7 {[%emt 0:00:00]} 9. Ne1 {[%emt 0:00:17]} Nd7 {
[%emt 0:00:01]} 10. Nd3 {[%emt 0:00:19]} f5 {[%emt 0:00:01]} 11. f3 {[%emt 0:
00:03]} f4 {[%emt 0:00:04]} 12. b4 {[%emt 0:00:12]} g5 {[%emt 0:00:15]} 13. c5
{[%emt 0:00:09]} Rf6 {[%emt 0:00:01]} 14. a4 {[%emt 0:01:44]} Rg6 {[%emt 0:00:
20]} 15. Kh1 {[%emt 0:02:52]} a6 {[%emt 0:01:05]} 16. Rg1 {[%emt 0:00:37]} Nf6
{[%emt 0:01:27]} 17. Nf2 {[%emt 0:00:12]} Nh5 {[%emt 0:01:53]} 18. g3 {[%emt 0:
01:03]} Rh6 {[%emt 0:00:18]} 19. Kg2 {[%emt 0:00:31]} Nf6 {[%emt 0:00:06]} 20.
a5 {[%emt 0:00:28]} Qe8 {[%emt 0:00:03]} 21. Rh1 {[%emt 0:00:59]} Qg6 {[%emt 0:
01:14]} 22. cxd6 {[%emt 0:00:38]} cxd6 {[%emt 0:00:01]} 23. Na4 {[%emt 0:00:09]
} fxg3 {[%emt 0:01:07]} 24. hxg3 {[%emt 0:00:07]} Rxh1 {[%emt 0:00:00]} 25.
Qxh1 {[%emt 0:00:07]} g4 {[%emt 0:00:02]} 26. Nb6 {[%emt 0:00:13]} Rb8 {
[%emt 0:00:01]} 27. Ra3 {[%emt 0:00:53]} h5 {[%emt 0:00:55]} 28. Qh4 {[%emt 0:
00:55]} gxf3+ {[%emt 0:01:07]} 29. Bxf3 {[%emt 0:00:03]} Bh6 {[%emt 0:01:17]}
30. Bxh5 {[%emt 0:01:02]} Nxh5 {[%emt 0:02:09]} 31. Bxh6 {[%emt 0:00:04]} Qf7 {
[%emt 0:01:01]} 32. Rf3 {[%emt 0:00:32]} 1-0

[Event "Magnus Carlsen Invitational 2021"]
[Site "Online"]
[Date "2021.03.10"]
[Round "9.6"]
[White "Carlsen, Magnus"]
[Black "Karjakin, Sergey"]
[Result "1-0"]
[ECO "D61"]
[WhiteElo "2881"]
[BlackElo "2709"]
[Annotator "RC"]
[PlyCount "79"]
[EventDate "2021.03.13"]
[EventType "tourn"]
[EventCountry "NET"]
[Tiebreak "Koya+Number of black wins+Number of wins"]
[SourceTitle "playchess.com"]
[Source "ChessBase"]
[SourceQuality "1"]
[TimeControl "900+10"]

1. d4 {[%emt 0:00:00]} Nf6 {[%emt 0:00:00]} 2. c4 {[%emt 0:00:00]} e6 {[%emt 0:
00:00]} 3. Nf3 {[%emt 0:00:00]} d5 {[%emt 0:00:00]} 4. Nc3 {[%emt 0:00:00]} Be7
{[%emt 0:00:00]} 5. Bg5 {[%emt 0:00:13]} O-O {[%emt 0:00:06]} 6. e3 {[%emt 0:
00:04]} Nbd7 {[%emt 0:00:05]} 7. Qc2 {[%emt 0:02:20]} h6 {[%emt 0:00:04]} 8.
Bh4 {[%emt 0:00:04]} c5 {[%emt 0:00:02]} 9. cxd5 {[%emt 0:00:06]} Nxd5 {
[%emt 0:00:08]} 10. Bxe7 {[%emt 0:00:01]} Qxe7 {[%emt 0:00:07]} 11. Nxd5 {
[%emt 0:00:01]} exd5 {[%emt 0:00:00]} 12. dxc5 {[%emt 0:00:01]} Nxc5 {[%emt 0:
00:00]} 13. Be2 {[%emt 0:00:07]} Bg4 {[%emt 0:00:03]} 14. O-O {[%emt 0:00:06]}
Rac8 {[%emt 0:00:21]} 15. Rad1 {[%emt 0:00:22]} Rfd8 {[%emt 0:00:41]} 16. h3 {
[%emt 0:03:23]} Ne6 {[%emt 0:01:56]} 17. Qa4 {[%emt 0:00:32]} Bxf3 {[%emt 0:04:
28]} 18. Bxf3 {[%emt 0:00:01]} Qc5 {[%emt 0:00:05]} 19. b4 {[%emt 0:02:00]} Qc4
{[%emt 0:00:10]} 20. Qxa7 {[%emt 0:00:02]} d4 {[%emt 0:00:52]} 21. exd4 {
[%emt 0:02:26]} Nxd4 {[%emt 0:00:38]} 22. Bxb7 {[%emt 0:01:04]} Rc7 {[%emt 0:
00:21]} 23. Qa5 {[%emt 0:00:22]} Rcd7 {[%emt 0:02:10]} 24. Ba6 {[%emt 0:00:31]}
Qe6 {[%emt 0:01:15]} 25. Kh1 {[%emt 0:00:04]} Rd6 {[%emt 0:00:34]} 26. b5 {
[%emt 0:01:11]} g6 {[%emt 0:00:21]} 27. a4 {[%emt 0:00:10]} Qf5 {[%emt 0:02:17]
} 28. Qb4 {[%emt 0:01:15]} Qe5 {[%emt 0:00:49]} 29. Qc3 {[%emt 0:00:31]} Qf4 {
[%emt 0:00:07]} 30. Bb7 {[%emt 0:01:29]} Nxb5 {[%emt 0:00:10]} 31. Rxd6 {
[%emt 0:00:13]} Nxc3 {[%emt 0:00:14]} 32. Rxd8+ {[%emt 0:00:01]} Kg7 {[%emt 0:
00:00]} 33. a5 {[%emt 0:00:18]} Qc7 {[%emt 0:00:09]} 34. a6 {[%emt 0:00:14]}
Nb5 {[%emt 0:00:07]} 35. Rfd1 {[%emt 0:00:04]} h5 {[%emt 0:00:11]} 36. Kg1 {
[%emt 0:00:01]} h4 {[%emt 0:00:09]} 37. R8d7 {[%emt 0:00:02]} Qc2 {[%emt 0:00:
05]} 38. Ra1 {[%emt 0:00:11]} Qc3 {[%emt 0:00:12]} 39. Rdd1 {[%emt 0:00:03]} g5
{[%emt 0:00:19]} 40. a7 {[%emt 0:00:11]} 1-0

[Event "Magnus Carlsen Invitational 2021"]
[Site "Online"]
[Date "2021.03.10"]
[Round "9.7"]
[White "Anton Guijarro, David"]
[Black "Nepomniachtchi, Ian"]
[Result "0-1"]
[ECO "E61"]
[WhiteElo "2674"]
[BlackElo "2778"]
[Annotator "RC"]
[PlyCount "84"]
[EventDate "2021.03.13"]
[EventType "tourn"]
[EventCountry "NET"]
[Tiebreak "Koya+Number of black wins+Number of wins"]
[SourceTitle "playchess.com"]
[Source "ChessBase"]
[SourceQuality "1"]
[TimeControl "900+10"]

1. d4 {[%emt 0:00:00]} Nf6 {[%emt 0:00:00]} 2. c4 {[%emt 0:00:00]} g6 {[%emt 0:
00:00]} 3. Nf3 {[%emt 0:00:00]} Bg7 {[%emt 0:00:00]} 4. e3 {[%emt 0:00:00]} d6
{[%emt 0:00:17]} 5. Nc3 {[%emt 0:00:09]} O-O {[%emt 0:00:07]} 6. Be2 {[%emt 0:
00:02]} Re8 {[%emt 0:00:07]} 7. O-O {[%emt 0:00:23]} Nc6 {[%emt 0:00:28]} 8. d5
{[%emt 0:00:05]} Nb4 {[%emt 0:00:01]} 9. a3 {[%emt 0:00:32]} Na6 {[%emt 0:00:
01]} 10. Nd4 {[%emt 0:00:11]} Bd7 {[%emt 0:00:01]} 11. e4 {[%emt 0:00:34]} c5 {
[%emt 0:00:11]} 12. Nc2 {[%emt 0:00:23]} e6 {[%emt 0:00:12]} 13. dxe6 {[%emt 0:
00:18]} Bxe6 {[%emt 0:00:05]} 14. Bg5 {[%emt 0:00:14]} h6 {[%emt 0:01:10]} 15.
Bf4 {[%emt 0:00:49]} Qb6 {[%emt 0:00:11]} 16. Rb1 {[%emt 0:01:19]} Rad8 {
[%emt 0:00:03]} 17. Qd2 {[%emt 0:00:11]} Kh7 {[%emt 0:00:03]} 18. Rfd1 {
[%emt 0:00:30]} Nb8 {[%emt 0:00:04]} 19. b4 {[%emt 0:00:22]} cxb4 {[%emt 0:00:
19]} 20. axb4 {[%emt 0:00:10]} Qc6 {[%emt 0:00:33]} 21. b5 {[%emt 0:00:52]} Qc8
{[%emt 0:00:21]} 22. Ne3 {[%emt 0:00:19]} Nbd7 {[%emt 0:00:02]} 23. Bxd6 {
[%emt 0:00:22]} Nc5 {[%emt 0:02:17]} 24. Qc2 {[%emt 0:00:35]} Nfd7 {[%emt 0:02:
35]} 25. f3 {[%emt 0:00:40]} Ne5 {[%emt 0:00:03]} 26. f4 {[%emt 0:01:30]} Ned3
{[%emt 0:00:02]} 27. e5 {[%emt 0:01:49]} Nxf4 {[%emt 0:00:50]} 28. Bf3 {
[%emt 0:00:03]} Nfd3 {[%emt 0:01:02]} 29. Ne4 {[%emt 0:03:37]} Nxe4 {[%emt 0:
00:12]} 30. Bxe4 {[%emt 0:00:01]} Nxe5 {[%emt 0:00:27]} 31. c5 {[%emt 0:00:09]}
f5 {[%emt 0:00:03]} 32. Bd5 {[%emt 0:00:31]} Bxd5 {[%emt 0:01:17]} 33. Rxd5 {
[%emt 0:00:06]} Nf7 {[%emt 0:00:35]} 34. Nc4 {[%emt 0:00:19]} Re4 {[%emt 0:00:
05]} 35. Qd3 {[%emt 0:00:14]} Rxc4 {[%emt 0:00:27]} 36. Qxc4 {[%emt 0:00:01]}
Nxd6 {[%emt 0:00:19]} 37. Qd3 {[%emt 0:00:01]} Ne4 {[%emt 0:00:03]} 38. Rc1 {
[%emt 0:00:00]} Rxd5 {[%emt 0:00:39]} 39. Qxd5 {[%emt 0:00:00]} Nc3 {[%emt 0:
00:33]} 40. Qc4 {[%emt 0:00:32]} Qe8 {[%emt 0:00:03]} 41. Kf1 {[%emt 0:00:01]}
Nxb5 {[%emt 0:00:29]} 42. Qd5 {[%emt 0:00:52]} Qc6 {[%emt 0:01:15]} 0-1

[Event "Magnus Carlsen Invitational 2021"]
[Site "Online"]
[Date "2021.03.10"]
[Round "9.8"]
[White "Grandelius, Nils"]
[Black "Mamedyarov, Shakhriyar"]
[Result "0-1"]
[ECO "B45"]
[WhiteElo "2632"]
[BlackElo "2761"]
[Annotator "RC"]
[PlyCount "72"]
[EventDate "2021.03.13"]
[EventType "tourn"]
[EventCountry "NET"]
[Tiebreak "Koya+Number of black wins+Number of wins"]
[SourceTitle "playchess.com"]
[Source "ChessBase"]
[SourceQuality "1"]
[TimeControl "900+10"]

1. e4 {[%emt 0:00:00]} c5 {[%emt 0:00:00]} 2. Nf3 {[%emt 0:00:00]} e6 {[%emt 0:
00:00]} 3. d4 {[%emt 0:00:04]} cxd4 {[%emt 0:00:00]} 4. Nxd4 {[%emt 0:00:00]}
Nf6 {[%emt 0:00:00]} 5. Nc3 {[%emt 0:00:04]} Nc6 {[%emt 0:00:00]} 6. Nxc6 {
[%emt 0:00:26]} bxc6 {[%emt 0:00:00]} 7. e5 {[%emt 0:00:02]} Nd5 {[%emt 0:00:
00]} 8. Ne4 {[%emt 0:00:05]} Qc7 {[%emt 0:00:00]} 9. f4 {[%emt 0:00:05]} Rb8 {
[%emt 0:00:04]} 10. Bd3 {[%emt 0:01:40]} Be7 {[%emt 0:02:54]} 11. O-O {[%emt 0:
00:40]} O-O {[%emt 0:00:10]} 12. c4 {[%emt 0:00:12]} f5 {[%emt 0:00:09]} 13.
exf6 {[%emt 0:03:26]} Nxf6 {[%emt 0:00:04]} 14. Qc2 {[%emt 0:00:16]} h6 {
[%emt 0:00:33]} 15. c5 {[%emt 0:03:39]} Nd5 {[%emt 0:00:35]} 16. Qf2 {[%emt 0:
00:58]} Nb4 {[%emt 0:00:46]} 17. Bb1 {[%emt 0:00:22]} Ba6 {[%emt 0:01:36]} 18.
Rd1 {[%emt 0:00:01]} Nd5 {[%emt 0:00:01]} 19. g3 {[%emt 0:01:37]} Qa5 {[%emt 0:
02:36]} 20. a3 {[%emt 0:00:43]} Qa4 {[%emt 0:03:27]} 21. Bc2 {[%emt 0:00:32]}
Qc4 {[%emt 0:00:02]} 22. b3 {[%emt 0:02:03]} Qe2 {[%emt 0:00:29]} 23. Qxe2 {
[%emt 0:01:42]} Bxe2 {[%emt 0:00:00]} 24. Re1 {[%emt 0:00:01]} Bg4 {[%emt 0:00:
05]} 25. Bd2 {[%emt 0:00:12]} Bf5 {[%emt 0:00:07]} 26. b4 {[%emt 0:00:03]} a5 {
[%emt 0:00:04]} 27. Rab1 {[%emt 0:00:19]} axb4 {[%emt 0:00:05]} 28. axb4 {
[%emt 0:00:00]} Rb7 {[%emt 0:00:15]} 29. Bd3 {[%emt 0:00:16]} Rfb8 {[%emt 0:00:
04]} 30. Ba6 {[%emt 0:00:20]} Bxe4 {[%emt 0:00:51]} 31. Rxe4 {[%emt 0:00:00]}
Bxc5+ {[%emt 0:00:01]} 32. Kg2 {[%emt 0:00:01]} Rb6 {[%emt 0:00:02]} 33. Bc4 {
[%emt 0:00:04]} Bxb4 {[%emt 0:00:07]} 34. Bxd5 {[%emt 0:00:02]} Bxd2 {[%emt 0:
00:02]} 35. Rxb6 {[%emt 0:00:02]} Rxb6 {[%emt 0:00:00]} 36. Ba2 {[%emt 0:00:11]
} Rb2 {[%emt 0:00:03]} 0-1

[Event "Magnus Carlsen Invitational 2021"]
[Site "Online"]
[Date "2021.03.10"]
[Round "10.1"]
[White "Giri, Anish"]
[Black "Mamedyarov, Shakhriyar"]
[Result "1-0"]
[ECO "B45"]
[WhiteElo "2731"]
[BlackElo "2761"]
[Annotator "ChessBase"]
[PlyCount "93"]
[EventDate "2021.03.13"]
[EventType "tourn"]
[EventCountry "NET"]
[Tiebreak "Koya+Number of black wins+Number of wins"]
[SourceTitle "playchess.com"]
[Source "ChessBase"]
[SourceQuality "1"]
[TimeControl "900+10"]

1. e4 {[%emt 0:00:00]} c5 {[%emt 0:00:00]} 2. Nf3 {[%emt 0:00:00]} e6 {[%emt 0:
00:00]} 3. d4 {[%emt 0:00:00]} cxd4 {[%emt 0:00:00]} 4. Nxd4 {[%emt 0:00:00]}
Nf6 {[%emt 0:00:00]} 5. Nc3 {[%emt 0:00:00]} Nc6 {[%emt 0:00:00]} 6. Ndb5 {
[%emt 0:00:00]} Bb4 {[%emt 0:00:02]} 7. a3 {[%emt 0:00:00]} Bxc3+ {[%emt 0:00:
00]} 8. Nxc3 {[%emt 0:00:00]} d5 {[%emt 0:00:04]} 9. Bd3 {[%emt 0:00:00]} O-O {
[%emt 0:00:15]} 10. O-O {[%emt 0:00:00]} d4 {[%emt 0:00:02]} 11. Ne2 {[%emt 0:
00:00]} e5 {[%emt 0:00:00]} 12. h3 {[%emt 0:00:00]} Re8 {[%emt 0:00:17]} 13. b4
{[%emt 0:00:02]} Nd7 {[%emt 0:00:21]} 14. f4 {[%emt 0:00:34]} exf4 {[%emt 0:00:
04]} 15. Bxf4 {[%emt 0:00:11]} Nde5 {[%emt 0:00:09]} 16. b5 {[%emt 0:00:02]}
Na5 {[%emt 0:00:08]} 17. Rb1 {[%emt 0:00:04]} Nec4 {[%emt 0:00:43]} 18. Bxc4 {
[%emt 0:00:50]} Nxc4 {[%emt 0:00:00]} 19. Qd3 {[%emt 0:00:02]} Be6 {[%emt 0:03:
00]} 20. Nxd4 {[%emt 0:03:15]} Nxa3 {[%emt 0:02:45]} 21. Rb4 {[%emt 0:02:09]}
Bc4 {[%emt 0:02:04]} 22. Rxc4 {[%emt 0:00:06]} Nxc4 {[%emt 0:00:00]} 23. Qxc4 {
[%emt 0:00:03]} Rxe4 {[%emt 0:00:01]} 24. c3 {[%emt 0:00:05]} a6 {[%emt 0:00:
03]} 25. bxa6 {[%emt 0:03:05]} Rxa6 {[%emt 0:00:03]} 26. Bg3 {[%emt 0:00:48]}
Qd7 {[%emt 0:00:14]} 27. Kh2 {[%emt 0:00:09]} h6 {[%emt 0:00:50]} 28. Qd3 {
[%emt 0:00:06]} Re8 {[%emt 0:01:00]} 29. Rf5 {[%emt 0:00:25]} Rg6 {[%emt 0:00:
44]} 30. Qf3 {[%emt 0:00:04]} Rg5 {[%emt 0:00:05]} 31. Rf4 {[%emt 0:00:11]} b5
{[%emt 0:00:02]} 32. Bh4 {[%emt 0:00:39]} Rg6 {[%emt 0:00:53]} 33. Nf5 {
[%emt 0:00:07]} Kh7 {[%emt 0:00:40]} 34. Bf2 {[%emt 0:00:53]} Qc7 {[%emt 0:02:
03]} 35. Bg3 {[%emt 0:00:40]} Qc6 {[%emt 0:00:23]} 36. Nd4 {[%emt 0:00:29]}
Qxf3 {[%emt 0:00:21]} 37. Rxf3 {[%emt 0:00:00]} Rb6 {[%emt 0:00:36]} 38. Rxf7 {
[%emt 0:02:00]} b4 {[%emt 0:00:01]} 39. cxb4 {[%emt 0:00:11]} Rxb4 {[%emt 0:00:
00]} 40. Rd7 {[%emt 0:00:20]} Rb2 {[%emt 0:00:30]} 41. Nf5 {[%emt 0:00:24]} Kg6
{[%emt 0:00:02]} 42. Ne7+ {[%emt 0:00:38]} Kh7 {[%emt 0:00:06]} 43. h4 {
[%emt 0:00:19]} Re2 {[%emt 0:00:24]} 44. Nd5 {[%emt 0:00:50]} Kg8 {[%emt 0:00:
40]} 45. Kh3 {[%emt 0:00:25]} Rf8 {[%emt 0:00:07]} 46. Nf4 {[%emt 0:00:19]}
Rfe8 {[%emt 0:00:23]} 47. Nxe2 {[%emt 0:00:01]} 1-0

[Event "Magnus Carlsen Invitational 2021"]
[Site "Online"]
[Date "2021.03.10"]
[Round "10.2"]
[White "Nepomniachtchi, Ian"]
[Black "Grandelius, Nils"]
[Result "1/2-1/2"]
[ECO "A01"]
[WhiteElo "2778"]
[BlackElo "2632"]
[Annotator "ChessBase"]
[PlyCount "88"]
[EventDate "2021.03.13"]
[EventType "tourn"]
[EventCountry "NET"]
[Tiebreak "Koya+Number of black wins+Number of wins"]
[SourceTitle "playchess.com"]
[Source "ChessBase"]
[SourceQuality "1"]
[TimeControl "900+10"]

1. b3 {[%emt 0:00:00]} d5 {[%emt 0:00:00]} 2. Bb2 {[%emt 0:00:00]} Bg4 {
[%emt 0:00:00]} 3. f3 {[%emt 0:00:00]} Bh5 {[%emt 0:00:00]} 4. h4 {[%emt 0:00:
00]} f6 {[%emt 0:00:16]} 5. d4 {[%emt 0:00:03]} e6 {[%emt 0:00:24]} 6. e3 {
[%emt 0:00:23]} Bd6 {[%emt 0:00:33]} 7. Ne2 {[%emt 0:00:03]} Ne7 {[%emt 0:00:
16]} 8. Nbc3 {[%emt 0:00:03]} c6 {[%emt 0:02:11]} 9. Qd2 {[%emt 0:00:03]} Nd7 {
[%emt 0:00:01]} 10. O-O-O {[%emt 0:00:30]} Qc7 {[%emt 0:00:02]} 11. g4 {
[%emt 0:00:23]} Bf7 {[%emt 0:00:02]} 12. h5 {[%emt 0:00:03]} O-O-O {[%emt 0:00:
16]} 13. Kb1 {[%emt 0:00:07]} Kb8 {[%emt 0:00:07]} 14. Nc1 {[%emt 0:00:28]} e5
{[%emt 0:00:28]} 15. Nd3 {[%emt 0:00:04]} f5 {[%emt 0:00:19]} 16. dxe5 {
[%emt 0:00:22]} Nxe5 {[%emt 0:00:04]} 17. Nxe5 {[%emt 0:00:05]} Bxe5 {[%emt 0:
00:00]} 18. f4 {[%emt 0:00:04]} d4 {[%emt 0:02:42]} 19. exd4 {[%emt 0:00:17]}
Bxf4 {[%emt 0:00:43]} 20. Qf2 {[%emt 0:00:27]} fxg4 {[%emt 0:01:43]} 21. Ne2 {
[%emt 0:00:04]} Nd5 {[%emt 0:00:09]} 22. Nxf4 {[%emt 0:02:31]} Qxf4 {[%emt 0:
00:00]} 23. Qxf4+ {[%emt 0:00:50]} Nxf4 {[%emt 0:00:02]} 24. Bc4 {[%emt 0:00:
00]} Bxc4 {[%emt 0:01:31]} 25. bxc4 {[%emt 0:00:03]} Rhe8 {[%emt 0:01:50]} 26.
Rhg1 {[%emt 0:00:04]} Nxh5 {[%emt 0:00:34]} 27. Rxg4 {[%emt 0:00:03]} Rd7 {
[%emt 0:00:42]} 28. d5 {[%emt 0:00:07]} Nf6 {[%emt 0:00:17]} 29. Bxf6 {[%emt 0:
00:50]} gxf6 {[%emt 0:00:00]} 30. Rf4 {[%emt 0:00:05]} Re5 {[%emt 0:01:02]} 31.
Rxf6 {[%emt 0:00:04]} cxd5 {[%emt 0:00:04]} 32. Rh6 {[%emt 0:00:01]} d4 {
[%emt 0:00:43]} 33. Kb2 {[%emt 0:00:03]} Rc5 {[%emt 0:00:41]} 34. Kb3 {[%emt 0:
00:41]} Rc6 {[%emt 0:00:12]} 35. Rdh1 {[%emt 0:00:33]} Rxh6 {[%emt 0:00:16]}
36. Rxh6 {[%emt 0:00:02]} d3 {[%emt 0:01:12]} 37. cxd3 {[%emt 0:00:00]} Rxd3+ {
[%emt 0:00:01]} 38. Kb4 {[%emt 0:00:01]} Rd7 {[%emt 0:00:01]} 39. a4 {[%emt 0:
00:01]} Kc7 {[%emt 0:00:06]} 40. a5 {[%emt 0:00:01]} Rg7 {[%emt 0:00:21]} 41.
a6 {[%emt 0:00:46]} bxa6 {[%emt 0:00:11]} 42. Rxa6 {[%emt 0:00:00]} Kb7 {
[%emt 0:00:21]} 43. Rh6 {[%emt 0:00:02]} Rf7 {[%emt 0:00:07]} 44. Kb5 {[%emt 0:
00:12]} a6+ {[%emt 0:00:19]} 1/2-1/2

[Event "Magnus Carlsen Invitational 2021"]
[Site "Online"]
[Date "2021.03.10"]
[Round "10.4"]
[White "Radjabov, Teimour"]
[Black "Carlsen, Magnus"]
[Result "1/2-1/2"]
[ECO "D60"]
[WhiteElo "2758"]
[BlackElo "2881"]
[Annotator "RC"]
[PlyCount "69"]
[EventDate "2021.03.13"]
[EventType "tourn"]
[EventCountry "NET"]
[Tiebreak "Koya+Number of black wins+Number of wins"]
[SourceTitle "playchess.com"]
[Source "ChessBase"]
[SourceQuality "1"]
[TimeControl "900+10"]

1. d4 {[%emt 0:00:00]} d5 {[%emt 0:00:00]} 2. c4 {[%emt 0:00:00]} e6 {[%emt 0:
00:00]} 3. Nf3 {[%emt 0:00:00]} Nf6 {[%emt 0:00:00]} 4. Nc3 {[%emt 0:00:00]} c6
{[%emt 0:00:00]} 5. Bg5 {[%emt 0:00:00]} h6 {[%emt 0:00:06]} 6. Bh4 {[%emt 0:
00:00]} Be7 {[%emt 0:00:13]} 7. e3 {[%emt 0:00:00]} Nbd7 {[%emt 0:00:11]} 8.
Bd3 {[%emt 0:00:23]} O-O {[%emt 0:00:03]} 9. O-O {[%emt 0:00:03]} dxc4 {
[%emt 0:00:02]} 10. Bxc4 {[%emt 0:00:00]} b5 {[%emt 0:00:06]} 11. Bd3 {[%emt 0:
00:00]} Bb7 {[%emt 0:00:12]} 12. a3 {[%emt 0:00:47]} a5 {[%emt 0:01:26]} 13.
Qe2 {[%emt 0:00:22]} b4 {[%emt 0:01:24]} 14. Na4 {[%emt 0:00:15]} c5 {[%emt 0:
00:54]} 15. Bxf6 {[%emt 0:00:26]} Bxf6 {[%emt 0:00:48]} 16. Nxc5 {[%emt 0:00:
09]} Nxc5 {[%emt 0:00:02]} 17. dxc5 {[%emt 0:00:01]} Rc8 {[%emt 0:05:53]} 18.
Rfc1 {[%emt 0:00:32]} Be7 {[%emt 0:01:49]} 19. Ba6 {[%emt 0:00:30]} Bxf3 {
[%emt 0:00:44]} 20. Qxf3 {[%emt 0:00:12]} Rxc5 {[%emt 0:00:07]} 21. Rxc5 {
[%emt 0:00:10]} Bxc5 {[%emt 0:00:00]} 22. axb4 {[%emt 0:00:42]} Bxb4 {[%emt 0:
00:02]} 23. Qe2 {[%emt 0:00:17]} Qf6 {[%emt 0:00:13]} 24. Rd1 {[%emt 0:00:13]}
Rb8 {[%emt 0:00:04]} 25. b3 {[%emt 0:00:07]} g6 {[%emt 0:00:02]} 26. Bc4 {
[%emt 0:00:02]} h5 {[%emt 0:00:03]} 27. g3 {[%emt 0:00:03]} Rd8 {[%emt 0:00:09]
} 28. Rxd8+ {[%emt 0:00:02]} Qxd8 {[%emt 0:00:00]} 29. Qd3 {[%emt 0:00:01]}
Qxd3 {[%emt 0:00:00]} 30. Bxd3 {[%emt 0:00:01]} Kg7 {[%emt 0:00:00]} 31. Kg2 {
[%emt 0:00:01]} Bc5 {[%emt 0:00:02]} 32. Kf3 {[%emt 0:00:01]} Bb4 {[%emt 0:00:
00]} 33. Kg2 {[%emt 0:00:01]} Bc5 {[%emt 0:00:01]} 34. Kf3 {[%emt 0:00:01]} Bb4
{[%emt 0:00:01]} 35. Kg2 {[%emt 0:00:00]} 1/2-1/2